{"text_format":"1","workbook":"xlsx","n_sheets":2,"sheets":["Earth","PlotDat2"],"not_rendered":{"charts":0,"images":0,"macros":1,"external_links":0,"defined_names":3,"comments":0,"pivot_tables":0},"unopened":[],"bounds":{"document_bytes":16777216,"sheet_cells":100000,"rows_first":2000,"rows_last":500,"rows_between":2000,"halvings":0,"cell_chars":16384,"cell_head_chars":4096},"cells_cut":0,"cells_raw":0,"read":"whole","date_system":"1900"}

{"sheet":"Earth","index":0,"n_rows":350,"n_cols":19,"rows_kept":350,"cut":false,"hidden":false,"merged":[]}
["Number","Magazine Reference","Microsoft Excel Hyperlink","Spreadsheet","Negative","Earth","Galaxy","Universe","K","Ar","Re","Pb","Th","U-235","U-238","Sm","Rb","Lu","Total"]
[1,"Chemical Geology 236, 2007,  Pages 323-338","www.creationismonline.com/YEC/Future.xlsm","Future_Ages_12",4,1,null,null,null,null,5,null,null,null,null,null,null,null,{"$f":"SUM(I2:R2)","v":5}]
[2,"Geochimica et Cosmochimica Acta, 2002, Volume 66, Number 6, Pages 1037-1050","www.creationismonline.com/YEC/Future.xlsm","Future_Ages_26",15,1,null,null,null,null,16,null,null,null,null,null,null,null,{"$f":"SUM(I3:R3)","v":16}]
[3,"Chemical Geology, Volume 130, 1996, Pages 55-64","www.creationismonline.com/YEC/Impossible.xlsm","Greater_01",null,1,null,null,null,null,1,null,null,null,null,null,null,null,1]
[4,"Lithos, Volume 125, 2011, Pages 405-422","www.creationismonline.com/YEC/Impossible.xlsm","Older_07",13,1,1,1,null,null,13,null,null,null,null,null,null,null,13]
[5,"International Journal Earth Science, 2012, Volume 101, Pages 1091-1109","www.creationismonline.com/YEC/Impossible.xlsm","Older_11",6,1,1,1,null,null,null,null,null,null,null,4,null,3,7]
[6,"Earth And Planetary Science Letters 7 (1969) 141-147","www.creationismonline.com/YEC/Research.xlsm","Pb_207_07",null,1,8,4,null,null,null,null,null,null,10,null,null,null,10]
[7,"Journal Of Petrology, 2009, Volume 50, Number 10, Pages 1857-1898","www.creationismonline.com/YEC/Neodymium_Samarium.xlsm","Nd_Sm_11",39,1,null,1,null,null,15,null,null,null,null,6,null,24,45]
[8,"Earth and Planetary Science Letters, Volume 99, 1990, Pages 230-249","www.creationismonline.com/YEC/Rubidium_Strontium_01.xlsm","Rb-Sr_06",1,1,null,null,null,null,null,null,null,null,null,null,3,null,3]
[9,"Earth and Planetary Science Letters, Volume 17, 1973, Pages 324-337","www.creationismonline.com/YEC/Rubidium_Strontium_01.xlsm","Rb-Sr_08",4,1,1,1,null,null,null,null,null,null,null,null,6,null,6]
[10,"Earth and Planetary Science Letters, Volume 80, 1986, Pages 281-298","www.creationismonline.com/YEC/Rubidium_Strontium_01.xlsm","Rb-Sr_18",2,1,1,1,null,null,null,null,null,null,null,null,3,null,3]
[11,"Earth and Planetary Science Letters, Volume 134, 1995, Pages 23-36","www.creationismonline.com/YEC/Rubidium_Strontium_01.xlsm","Rb-Sr_24",7,1,1,1,null,null,null,null,null,null,null,null,8,null,8]
[12,"Journal Of Petrology, 2009, Volume 50, Number 10, Pages 1857-1898","www.creationismonline.com/YEC/Rubidium_Strontium_01.xlsm","Rb-Sr_38",39,1,null,1,null,null,15,null,null,null,null,6,null,24,45]
[13,"Meteoritics And Planetary Science, 1998, Volume 33, pages 31-48","www.creationismonline.com/YEC/Good.xlsm","Very_Old_06",null,1,null,null,null,1,null,null,null,null,null,null,null,null,1]
[14,"Geochimica et Cosmochimica Acta 74 (2010) 3292-3306","www.creationismonline.com/YEC/Good.xlsm","Very_Old_07",4,1,null,null,null,null,5,null,null,null,null,null,null,null,5]
[15,"Earth and Planetary Science Letters, 1974, Volume 22, Pages 256 - 266","www.creationismonline.com/YEC/Dating_Methods.xlsm","Ages_002",null,1,1,1,null,1,null,null,null,null,null,null,null,null,1]
[16,"Nature, 1986, Volume 323, Page 710, 711","www.creationismonline.com/YEC/Dating_Methods.xlsm","Nature_1",null,1,null,null,null,1,null,null,null,null,null,null,null,null,1]
[17,"Nature, 1989, Volume 337, Page 226 - 229","www.creationismonline.com/YEC/Dating_Methods.xlsm","Nature_2",null,1,null,null,null,1,null,null,null,null,null,null,null,null,1]
[18,"Geochemica Et Cosmochemica Acta, 1979, Volume 43, Pages 1829 - 1840","www.creationismonline.com/YEC/Dating_Methods.xlsm","Niemeyer",null,1,null,null,null,1,null,null,null,null,null,null,null,null,1]
[19,"Lithos, Volume 126, 2011, Pages 233-247","www.creationismonline.com/YEC/Impossible.xlsm","Greater_03",16,2,1,1,null,null,13,null,null,null,null,1,null,5,19]
[20,"Lithos, Volume 112-S, 2009, Pages 1120-1132","www.creationismonline.com/YEC/Impossible.xlsm","Older_12",null,2,null,null,null,null,2,null,null,null,null,null,null,null,2]
[21,"Chinese Journal Of Geochemistry, Volume 16, Number 1, 1997, Pages 80-85","www.creationismonline.com/YEC/Excellent.xlsm","Excellent_05",null,2,null,null,null,null,null,14,null,null,null,null,null,null,14]
[22,"Earth and Planetary Science Letters, Volume 64, 1983, Pages 356-373","www.creationismonline.com/YEC/Rubidium_Strontium_01.xlsm","Rb-Sr_13",1,2,null,null,null,null,null,null,null,null,null,null,3,null,3]
[23,"Geochimica et Cosmochimica Acta 74 (2010) Pages 5368-5381","www.creationismonline.com/YEC/Good.xlsm","Very_Old_13",null,2,null,null,null,null,2,null,null,null,null,null,null,null,2]
[24,"Economic Geology, 1978, Volume 73, Pages 29 - 49","www.creationismonline.com/YEC/Dating_Methods.xlsm","Ages_006",null,2,1,null,null,null,null,null,null,null,null,null,null,null,0]
[25,"Earth and Planetary Science Letters, 1973, Volume 20, Pages 157 - 170","www.creationismonline.com/YEC/Dating_Methods.xlsm","Ages_019",null,2,null,null,null,null,null,null,null,null,null,null,null,null,0]
[26,"Geochemica Et Cosmochemica Acta, 2000, Volume 64, Number 17, Pages 2913 - 2928","www.creationismonline.com/YEC/Dating_Methods.xlsm","Amelin_E",null,2,null,null,null,null,null,null,null,null,null,null,null,null,0]
[27,"Icarus, 1980, Volume 42, pages 380 - 405","www.creationismonline.com/YEC/Dating_Methods.xlsm","Jessberger",null,2,null,null,null,null,null,null,null,null,null,null,null,null,0]
[28,"Geochemica Et Cosmochemica Acta, 1990, Volume 54, pages 3509 - 3523","www.creationismonline.com/YEC/Dating_Methods.xlsm","Okano",null,2,null,null,null,null,null,null,null,null,null,null,null,null,0]
[29,"Geochimica et Cosmochimica Acta, 1993, Volume 57, Page 1626","www.creationismonline.com/YEC/Dating_Methods.xlsm","Older_8",null,2,null,null,null,null,null,2,null,null,null,null,null,null,2]
[30,"Earth and Planetary Science Letters, 1982, Volume 61, Page 293","www.creationismonline.com/YEC/Dating_Methods.xlsm","Older_7",null,2,null,null,null,null,null,2,null,null,null,null,null,null,2]
[31,"Geochimica et Cosmochimica Acta, 1995, Volume 59, Number 5, Page 970","www.creationismonline.com/YEC/Dating_Methods.xlsm","Older_6",24,2,1,null,null,null,27,null,null,null,null,null,null,null,27]
[32,"Earth And Planetary Science Letters, 1994, Volume 126, Page 460","www.creationismonline.com/YEC/Dating_Methods.xlsm","Older_2",null,2,1,1,null,null,null,4,18,null,null,null,null,null,22]
[33,"Chemical Geology 208, 2004,  Pages 141- 156","www.creationismonline.com/YEC/Future.xlsm","Future_Ages_16",3,3,null,null,null,null,6,null,null,null,null,null,null,null,6]
[34,"Geochemica et Cosmochimica Acta, 1995, Volume 59, Number 5, Pages 959-977","www.creationismonline.com/YEC/Impossible.xlsm","Older_06",null,3,1,1,null,null,null,null,null,null,null,null,3,null,3]
[35,"Gondwana Research 14 (2008) Page 644-662","www.creationismonline.com/YEC/Excellent.xlsm","Excellent_20",null,3,null,null,null,null,null,44,null,null,null,null,null,null,44]
[36,"Earth and Planetary Science Letters 183 (2000) 93-106","www.creationismonline.com/YEC/Research.xlsm","Th_232_02",null,3,null,null,null,null,null,3,null,null,null,null,null,null,3]
[37,"Geochimica et Cosmochimica Acta, Volume 73, 2009, Pages 3963-3980","www.creationismonline.com/YEC/Rubidium_Strontium_01.xlsm","Rb-Sr_31",null,3,2,1,null,null,null,null,null,null,null,null,3,null,3]
[38,"Journal Of Petrology, 1997, Volume 38, Number 11, Pages 1489-1512","www.creationismonline.com/YEC/Rubidium_Strontium_01.xlsm","Rb-Sr_37",null,3,null,null,null,null,null,null,null,null,null,null,3,null,3]
[39,"Geochimica et Cosmochimica Acta, 2009, Volume 73, Pages 3963-3980","www.creationismonline.com/YEC/Rubidium_Strontium_02.xlsm","Rb-Sr_15",null,3,3,2,null,null,null,null,null,null,null,null,3,null,3]
[40,"Meteoritics & Planetarv Science, 2002,  Volume 37, Pages 371- 394","www.creationismonline.com/YEC/Good.xlsm","Very_Old_05",null,3,null,null,null,3,null,null,null,null,null,null,null,null,3]
[41,"Meteoritics And Planetary Science, 2001, Volume 36, Pages 107 - 122","www.creationismonline.com/YEC/Dating_Methods.xlsm","BOGARD_F",null,3,null,null,null,3,null,null,null," ",null,null,null,null,3]
[42,"Geochemica Et Cosmochemica Acta, 2010, Volume 74, pages 1734 - 1747","www.creationismonline.com/YEC/Dating_Methods.xlsm","Jourdan",null,3,1,null,null,null,4,null,null,null,null,null,null,null,4]
[43,"Lithos, Volume  126, 2011,  Pages 233-247","www.creationismonline.com/YEC/Future.xlsm","Future_Ages_13",17,4,1,1,null,null,15,null,null,null,null,1,null,5,21]
[44,"Journal Of Petrology, 2007, Volume 48, Number 3, Pages 589-625","www.creationismonline.com/YEC/Impossible.xlsm","To_Old_01",27,4,3,3,null,null,4,null,null,null,null,23,null,6,33]
[45,"Earth and Planetary Science Letters, 1995, Volume 134, Pages 341-357","www.creationismonline.com/YEC/Impossible.xlsm","To_Old_02",null,4,2,1,null,null,4,null,null,null,null,null,null,null,4]
[46,"Economic Geology, 2002, Volume 97, Pages 23 - 42","www.creationismonline.com/YEC/Dating_Methods.xlsm","Ages_001",null,4,1,1,null,null,null,null,null,null,null,null,4,null,4]
[47,"Economic Geology, 1979, Volume 74, Pages 1654 - 1668","www.creationismonline.com/YEC/Dating_Methods.xlsm","Ages_017",null,4,1,null,null,null,null,null,null,null,4,null,null,null,4]
[48,"Meteoritics And Planetary Science, 1998, Volume 33, Pages 641 - 453","www.creationismonline.com/YEC/Dating_Methods.xlsm","Birck",null,4,1,1,null,null,null,13,null,null,null,null,null,null,13]
[49,"Earth And Planetary Science Letters, 1995, Volume 134, Page 344","www.creationismonline.com/YEC/Dating_Methods.xlsm","Older_3",null,4,3,1,null,null,null,4,null,null,null,null,null,null,4]
[50,"Earth and Planetary Science Letters, 1995, Volume 134, Pages 341-357","www.creationismonline.com/YEC/Dating_Methods.xlsm","Pearson",null,4,3,1,null,null,null,null,null,null,null,null,null,null,0]
[51,"Geochemica Et Cosmochemica Acta, 1997, Volume 61, Number 16, pp. 3477 - 3501","www.creationismonline.com/YEC/Dating_Methods.xlsm","Pellas",null,4,2,null,null,null,4,null,null,null,null,null,null,null,4]
[52,"Geochemica et Cosmochimica Acta, 1995, Volume 59, Number 5, Pages 959-977","www.creationismonline.com/YEC/Negative.xlsm","Negative_20",17,5,1,null,null,null,13,null,null,null,null,4,8,null,25]
[53,"Gondwana Research 11 (2007) Page 69-91","www.creationismonline.com/YEC/Excellent.xlsm","Excellent_18",null,5,null,null,null,null,null,47,null,null,null,null,null,null,47]
[54,"Gondwana Research 11 (2007) Page 382-395","www.creationismonline.com/YEC/Excellent.xlsm","Excellent_26",null,5,null,null,null,null,null,8,null,null,null,null,null,null,8]
[55,"Journal of Petrology, 2011, Volume 52, Number 2, Pages 401-430","www.creationismonline.com/YEC/Excellent.xlsm","Excellent_36",null,5,null,null,null,null,null,15,null,null,null,null,null,null,15]
[56,"Geochimica et Cosmochimica Acta, 1956, Volume 10, Pages 230 to 237","www.creationismonline.com/YEC/Excellent.xlsm","Excellent_40",null,5,null,null,null,null,null,20,null,null,null,null,null,null,20]
[57,"Lithos, 2003, Volume 71, Pages 323- 336","www.creationismonline.com/YEC/Good.xlsm","Very_Old_10",1,5,2,2,null,null,8,null,null,null,null,null,null,null,8]
[58,"www.nature.com/ngeo/journal/v5/n4/extref/ngeo1432-s2.xls","www.creationismonline.com/YEC/Very_Old_Z.xls","Very_Old_Z",null,5,null,null,null,null,null,5,null,null,null,null,null,null,5]
[59,"Economic Geology, 2011, Volume 106, pages 835–867","www.creationismonline.com/YEC/Th-Pb.xlsm","232_Th_11",null,6,3,2,null,null,null,null,6,null,null,null,null,null,6]
[60,"Contributions Mineral Petrology (1984) 85, Pages 376-390","www.creationismonline.com/YEC/Excellent.xlsm","Excellent_03",null,6,null,null,null,null,null,6,null,null,null,null,null,null,6]
[61,"Mineralium Deposita (1999) 34, Pages 273-283","www.creationismonline.com/YEC/Excellent.xlsm","Excellent_04",null,6,null,null,null,null,null,2,null,null,null,null,null,null,2]
[62,"Chemical Geology, 66 (1987) Pages 193-208","www.creationismonline.com/YEC/Excellent.xlsm","Excellent_11",null,6,null,null,null,null,null,41,null,null,null,null,null,null,41]
[63,"Geochemistry And Geophysics Geosystems, 2006, Volume 7, Number 8, Pages 1-29","www.creationismonline.com/YEC/Excellent.xlsm","Excellent_28",null,6,null,null,null,null,null,22,null,null,null,null,null,null,22]
[64,"Geochemica Et Cosmochemica Acta, 1980, Volume 44, pages 1667 - 1682","www.creationismonline.com/YEC/Dating_Methods.xlsm","BOGARD_B",null,6,null,null,null,6,null,null,null,null,null,null,null,null,6]
[65,"Gondwana Research, 2005, Volume 8, Number 4, Pages 617-621","www.creationismonline.com/YEC/Dating_Methods.xlsm","Itaya",null,6,4,2,null,null,6,null,null,null,null,null,null,null,6]
[66,"Earth and Planetary Science Letters, 2003, Volume 209, pages 323 - 336","www.creationismonline.com/YEC/Dating_Methods.xlsm","Kyoungwon",null,6,null,null,null,null,null,null,6,null,null,null,null,null,{"$f":"SUM(I67:R67)","v":6}]
[67,"Earth And Planetary Science Letters, 1999, Volume 172, Page 207","www.creationismonline.com/YEC/Dating_Methods.xlsm","Older_4",null,6,null,null,null,null,null,null,null,null,null,null,null,null,0]
[68,"Earth and Planetary Science Letters, 2002, Volume 203, Pages 651-663","www.creationismonline.com/YEC/Impossible.xlsm","To_Old_03",25,7,2,2,null,null,33,null,null,null,null,null,null,null,33]
[69,"Geochimica et Cosmochimica Acta, 1989,  Volume 53, Pages 1583-1595","www.creationismonline.com/YEC/Impossible.xlsm","To_Old_04",4,7,1,null,null,null,9,5,null,null,null,null,null,null,14]
[70,"Earth and Planetary Science Letters, 2011, Volume 302, Pages 154-162","www.creationismonline.com/YEC/Excellent.xlsm","Excellent_46",null,7,null,null,null,null,null,66,null,null,null,null,null,null,66]
[71,"Geochimica et Cosmochimica Acta, 2005, Volume 69, Number 5, Pages 1253-1264","www.creationismonline.com/YEC/Good.xlsm","Good_06",null,7,null,null,null,7,null,null,null,null,null,null,null,null,7]
[72,"Meteoritics & Planetary Science, 2002, Volume 37, Pages 1797-1813","www.creationismonline.com/YEC/Good.xlsm","Very_Old_04",null,7,null,null,null,7,null,null,null,null,null,null,null,null,7]
[73,"Precambrian Research, 2002, Volume 117, Pages 119 - 143","www.creationismonline.com/YEC/Plot_Index.xlsm","Iso_Plot_008",null,7,null,null,null,null,null,7,null,null,null,null,null,null,7]
[74,"http://petrology.oxfordjournals.org/content/suppl/1999/12/17/40.6.873.DC1/morriso.xls","www.creationismonline.com/YEC/Very_Old_X.xls","Very_Old_X",null,7,null,null,null,null,null,7,null,null,null,null,null,null,7]
[75,"Chemical Geology 276, 2010,  Pages 166-187","www.creationismonline.com/YEC/Future.xlsm","Future_Ages_21",4,8,null,null,null,null,12,null,null,null,null,null,null,null,12]
[76,"Earth And Planetary Science Letters, Volume 123, 1994, Pages 139-154","www.creationismonline.com/YEC/GOOD.xlsm","GOOD_G",null,8,null,null,null,null,null,8,null,null,null,null,null,null,8]
[77,"Geochimica et Cosmochimica Acta, 2008, Volume 72, Pages 5722-5756","www.creationismonline.com/YEC/Impossible.xlsm","To_Old_05",10,8,4,4,null,null,18,null,null,null,null,null,null,null,18]
[78,"Chemical Geology, 1985, Volume 52, Pages 249-271","www.creationismonline.com/YEC/Impossible.xlsm","To_Old_06",4,8,4,4,null,null,null,null,null,null,null,null,12,null,12]
[79,"Geochimica et Cosmochimica Acta, 1983 Vol. 47. Pages 2217 to 2224","www.creationismonline.com/YEC/Good.xlsm","Very_Old_08",null,8,null,null,8,null,null,null,null,null,null,null,null,null,8]
[80,"Meteoritics & Planetary Science, 2003, Volume 38, Number 11, Pages 1697 - 1703","www.creationismonline.com/YEC/Plot_Index.xlsm","Iso_Plot_003",null,8,null,null,null,null,null,null,2,null,6,null,null,null,8]
[81,"Geochemica Et Cosmochemica Acta, 2005, Volume 69, Number 2, pages 505 - 518","www.creationismonline.com/YEC/Dating_Methods.xlsm","Amelin_A",null,8,null,null,null,null,null,null,2,2,4,null,null,null,8]
[82,"Geochimica et Cosmochimica Acta, 1989, Volume 53, Page 1591","www.creationismonline.com/YEC/Dating_Methods.xlsm","Older_5",7,8,2,1,null,6,null,5,null,null,null,null,null,null,11]
[83,"Science, 1967, Volume 155, Pages 999 - 1000","www.creationismonline.com/YEC/Dating_Methods.xlsm","Ranticelli",null,8,2,null,8,null,null,null,null,null,null,null,null,null,8]
[84,"Geochemica Et Cosmochemica Acta, 1970, Volume 34, pages 713 - 725","www.creationismonline.com/YEC/Dating_Methods.xlsm","Riley",null,8,4,4,null,8,null,null,null,null,null,null,null,null,8]
[85,"Precambrian Research, Volume 118, 2002, Pages 267-283","www.creationismonline.com/YEC/Impossible.xlsm","Older_05",null,9,2,2,null,null,9,null,null,null,null,null,null,null,9]
[86,"Earth and Planetary Science Letters, 59 (1982) Pages 327-342","www.creationismonline.com/YEC/Excellent.xlsm","Excellent_32",null,9,null,null,null,null,null,16," ",null,null,null,null,null,16]
[87,"International Geology Review, Volume 45, 2003, Pages 780-797.","www.creationismonline.com/YEC/Excellent.xlsm","Excellent_43",null,9,null,null,null,null,null,13,13,null,null,null,null,null,26]
[88,"Earth and Planetary Science Letters 165 (1999) 117-127","www.creationismonline.com/YEC/Research.xlsm","Pb_207_08",null,9,null,null,null,null,null,9,null,null,null,null,null,null,9]
[89,"Earth and Planetary Science Letters 267 (2008) 236-246","www.creationismonline.com/YEC/Research.xlsm","Pb_207_10",null,9,null,null,null,null,null,9,null,null,null,null,null,null,9]
[90,"Earth and Planetary Science Letters, Volume 59, 1982, Pages 327-342","www.creationismonline.com/YEC/Neodymium_Samarium.xlsm","Nd_Sm_02",null,9,null,null,null,null,null,9,null,null,null,null,null,null,9]
[91,"Earth and Planetary Science Letters, Volume 59, 1982, Pages 327-342","www.creationismonline.com/YEC/Rubidium_Strontium_01.xlsm","Rb-Sr_14",null,9,null,null,null,null,null,9,null,null,null,null,null,null,9]
[92,"Geochimica et Cosmochimica Acta, 2006, Volume 70, Pages 4950-4976","www.creationismonline.com/YEC/Rubidium_Strontium_02.xlsm","Rb-Sr_12",null,9,null,null,null,null,null,9,null,null,null,null,null,null,9]
[93,"Chemical Geology 255 (2008) 329-345","www.creationismonline.com/YEC/Rubidium_Strontium_02.xlsm","Rb-Sr_17",null,9,null,null,null,null,null,9,null,null,null,null,null,null,9]
[94,"Precambrian Research, 1988, Volume 38, Pages 147 - 164","www.creationismonline.com/YEC/Plot_Index.xlsm","Iso_Plot_011",null,9,null,null,null,null,null,9,null,null,null,null,null,null,9]
[95,"www.nature.com/ngeo/journal/v5/n4/extref/ngeo1432-s2.xls","www.creationismonline.com/YEC/Very_Old_A_5.xls","Very_Old_A_5",null,9,null,null,null,null,null,9,null,null,null,null,null,null,9]
[96,"Geochemica Et Cosmochemica Acta, 2008, Volume 72, Pages 2067 - 2089","www.creationismonline.com/YEC/Dating_Methods.xlsm","Amelin_F",null,9,5,5,null,null,null,null,4,null,5,null,null,null,9]
[97,"Earth And Planetary Science Letters ,Volume 180, 2000, Pages 259-270","www.creationismonline.com/YEC/GOOD.xlsm","GOOD_P",null,10,null,null,null,null,null,10,null,null,null,null,null,null,10]
[98,"Geochimica et Cosmochimica Acta, Vol. 62, No. 16, pp. 2823-2835, 1998","www.creationismonline.com/YEC/Lead_206_207.xlsm","Pb-206_24",null,10,null,null,null,null,null,20,null,null,1,null,null,null,21]
[99,"Earth and Planetary Science Letters, Volume 86, 1987, Pages 327-340","www.creationismonline.com/YEC/Rubidium_Strontium_01.xlsm","Rb-Sr_19",2,10,10,10,null,null,null,null,null,null,null,null,12,null,12]
[100,"Journal Of Petrology, 2000, Volume 41, Number 6, Pages 759-788","www.creationismonline.com/YEC/Rubidium_Strontium_01.xlsm","Rb-Sr_36",null,10,5,5,null,null,null,5,null,null,5,null,null,null,10]
[101,"http://www.lpi.usra.edu/meetings/lpsc1980/pdf/1155.pdf","www.creationismonline.com/YEC/Good.xlsm","Good_11",null,10,null,null,null,11,null,null,null,null,null,null,null,null,11]
[102,"http://www.lpi.usra.edu/meetings/lpsc1978/pdf/1289.pdf","www.creationismonline.com/YEC/Good.xlsm","Good_12",null,10,null,null,null,null,null,2,2,null,2,4,4,null,14]
[103,"Precambrian Research, 17 (1982) 199--214","www.creationismonline.com/YEC/Good.xlsm","Diamonds_03",null,10,10,10,null,null,null,null,10,null,null,null,null,null,10]
[104,"Earth and Planetary Science Letters, 1983, Volume 62, Pages 132 - 146","www.creationismonline.com/YEC/Plot_Index.xlsm","Iso_Plot_019",null,10,null,null,null,null,null,13,null,null,null,null,null,null,13]
[105,"http://petrology.oxfordjournals.org/content/suppl/2011/05/11/egr022.DC1/Appendix_table_1.xls","www.creationismonline.com/YEC/Very_Old_F.xls","Very_Old_F",null,10,null,null,null,null,null,10,null,null,null,null,null,null,10]
[106,"www.nyecounty.com/RID_data/rid4391.xls","www.creationismonline.com/YEC/Very_Old_L.xls","Very_Old_L",null,10,null,null,null,null,null,10,null,null,null,null,null,null,10]
[107,"Earth and Planetary Science Letters, 1974, Volume 22, Pages 145 - 156","www.creationismonline.com/YEC/Dating_Methods.xlsm","Ages_012",null,10,null,null,null,12,null,null,null,null,null,null,null,null,12]
[108,"Earth and Planetary Science Letters, 1968, Volume 4, pages 84 - 88","www.creationismonline.com/YEC/Dating_Methods.xlsm","Kaiser",null,10,null,null,null,10,null,null,null,null,null,null,null,null,10]
[109,"Geochemica Et Cosmochemica Acta, 1988, Volume 52, Pages 2487 - 2499","www.creationismonline.com/YEC/Dating_Methods.xlsm","Mc-Convill",null,10,null,null,10,null,null,null,null,null,null,null,null,null,10]
[110,"Lithos, Volume  142-143, 2012, Pages 161-181","www.creationismonline.com/YEC/Future.xlsm","Future_Ages_02",13,11,3,3,null,null,null,null,null,null,null,13,15,22,50]
[111,"Chemical Geology, Volume 162, 2000, Pages 169-191","www.creationismonline.com/YEC/Future.xlsm","Future_Ages_09",3,11,1,null,null,null,null,10,null,null,21,null,3,null,34]
[112,"Journal Of Petrology, Volume 51, Numbers 1 & 2, Pages 537-571, 2010 ","www.creationismonline.com/YEC/GOOD.xlsm","GOOD_Q",null,11,null,null,null,null,null,null,null,null,null,null,null,null,0]
[113,"Lithos, Volume 48, 1999, Pages 184","www.creationismonline.com/YEC/Impossible.xlsm","Greater_05",null,11,null,null,null,null,11,null,null,null,null,null,null,null,11]
[114,"Contribution Mineral Petrology, 2002, Volume 144, Pages 241-253","www.creationismonline.com/YEC/Th-Pb.xlsm","232_Th_08",null,11,11,11,null,null,null,3,11,null,null,null,null,null,14]
[115,"Earth and Planetary Science Letters, Volume 37, 1977, Pages 1-12","www.creationismonline.com/YEC/Rubidium_Strontium_01.xlsm","Rb-Sr_09",3,11,3,3,null,null,null,2,9,3,9,null,5,null,28]
[116,"Earth and Planetary Science Letters, Volume 61, 1982, Pages 97- 111","www.creationismonline.com/YEC/Rubidium_Strontium_01.xlsm","Rb-Sr_12",null,11,null,null,null,null,null,11,null,null,null,null,null,null,11]
[117,"Earth and Planetary Science Letters, 1983, Volume 63, Pages 1 To 12","www.creationismonline.com/YEC/Good.xlsm","Good_02",null,11,null,null,null,11,null,null,null,null,null,null,null,null,11]
[118,"Geochimica et Cosmochimica Acta, Vol. 61, No. 18, pp. 3835-3850, 1997","www.creationismonline.com/YEC/Good.xlsm","Very_Old_12",null,11,null,null,null,11,null,null,null,null,null,null,null,null,11]
[119,"www.geology.cwu.edu/facstaff/wendy/ecrafc/Longvalley.xls","www.creationismonline.com/YEC/Very_Old_K.xls","Very_Old_K",null,11,null,null,null,null,null,11,null,null,null,null,null,null,11]
[120,"http://ir.library.oregonstate.edu/xmlui/bitstream/handle/1957/12572/APPENDIX 2 geochem.xls","www.creationismonline.com/YEC/Very_Old_Q.xls","Very_Old_Q",null,11,null,null,null,null,null,11,null,null,null,null,null,null,11]
[121,"http://www.nature.com/nature/journal/v485/n7400/extref/nature11140-s3.xls","www.creationismonline.com/YEC/Very_Old_A_8.xls","Very_Old_A_8",4,11,1,null,null,null,null,null,11,null,null,null,null,null,11]
[122,"Mineralogy and Petrology, 1999, Volume 66, Pages 171-191","www.creationismonline.com/YEC/Negative.xlsm","Negative_06",null,12,null,null,null,null,null,12,null,null,null,null,null,null,12]
[123,"Chemical Geology, Volume 248, 2008, Pages 40-61","www.creationismonline.com/YEC/Negative.xlsm","Negative_08",2,12,null,null,null,null,null,11,null,null,1,null,null,null,12]
[124,"Mineralogy and Petrology (1993) 47, Pages 103-126","www.creationismonline.com/YEC/Excellent.xlsm","Excellent_02",null,12,null,null,null,null,null,12,null,null,null,null,null,null,12]
[125,"Earth and Planetary Science Letters, 42 (1979) Pages 368-378","www.creationismonline.com/YEC/Excellent.xlsm","Excellent_15",null,12,null,null,null,null,null,20,null,null,null,null,null,null,20]
[126,"http://ees.elsevier.com/lithos/download.aspx?id=48550&guid=fd055aeb-90c3-4095-a14c-c91a93e48fa5&scheme=1","www.creationismonline.com/YEC/GOOD.xlsm","GOOD_H",null,13,null,null,null,null,null,13,null,null,null,null,null,null,13]
[127,"Chemical Geology 233 (2006) Pages 1-45","www.creationismonline.com/YEC/Excellent.xlsm","Excellent_09",null,13,null,null,null,null,null,18,null,null,null,null,null,null,18]
[128,"Earth and Planetary Science Letters, Volume 73, 1985, Pages 269-277","www.creationismonline.com/YEC/Neodymium_Samarium.xlsm","Nd_Sm_03",null,13,null,null,null,null,null,10,null,null,3,null,null,null,13]
[129,"Earth and Planetary Science Letters, Volume 73, 1985, Pages 269-277","www.creationismonline.com/YEC/Rubidium_Strontium_01.xlsm","Rb-Sr_15",null,13,null,null,null,null,null,10,null,null,3,null,null,null,13]
[130,"Geochimica et Cosmochimica Acta, Volume 71, 2007, Pages 3656-3671","www.creationismonline.com/YEC/Rubidium_Strontium_01.xlsm","Rb-Sr_30",null,13,1,1,null,null,null,6,null,null,5,null,3,null,{"$f":"SUM(I131:R131)","v":14}]
[131,"Journal Of Petrology, 1999, Volume 40, Number 4, Pages 525-548","www.creationismonline.com/YEC/Rubidium_Strontium_01.xlsm","Rb-Sr_40",null,13,null,null,null,null,null,12,null,null,null,null,10,null,22]
[132,"Geochemica Et Cosmochemica Acta, 2008, Volume 72, Pages 221 - 232","www.creationismonline.com/YEC/Dating_Methods.xlsm","Amelin_D",null,13,null,null,null,null,null,null,null,null,13,null,null,null,13]
[133,"Meteoritics And Planetary Science, 2003, Volume 38, Number 5, Pages 669 - 710","www.creationismonline.com/YEC/Dating_Methods.xlsm","BOGARD_E",null,13,null,null,null,13,null,null,null,null,null,null,null,null,13]
[134,"Earth And Planetary Science Letters, Volume 337-338, 2012, Pages 164-173","www.creationismonline.com/YEC/GOOD.xlsm","GOOD_A",null,14,null,null,null,null,null,14,null,null,null,null,null,null,14]
[135,"Journal of Volcanology and Geothermal Research, Volume 117, 2002, Pages 285-296","www.creationismonline.com/YEC/Negative.xlsm","Negative_03",null,14,null,null,null,null,null,null,null,null,null,null,null,null,0]
[136,"Earth and Planetary Science Letters, 2012, Volume 337-338, Pages 164-173","www.creationismonline.com/YEC/Excellent.xlsm","Excellent_42",null,14,null,null,null,null,null,9,null,null,null,null,null,null,9]
[137,"Earth and Planetary Science Letters, 42 (1979) 58-70","www.creationismonline.com/YEC/Lead_206_207.xlsm","Pb-206_06",null,14,null,null,null,null,null,14,null,null,null,null,null,null,14]
[138,"Geochimica et Cosmochimica Acta, 2001, Volume 65, Number 4, Pages 571-587","www.creationismonline.com/YEC/Rubidium_Strontium_01.xlsm","Rb-Sr_29",null,14,null,null,null,null,null,14,null,null,null,null,null,null,14]
[139,"Geochimica et Cosmochimica Acta, 1991, Volume 55, Pages 829-848","www.creationismonline.com/YEC/Rubidium_Strontium_02.xlsm","Rb-Sr_01",null,14,6,4,null,null,null,null,null,null,null,3,11,null,14]
[140,"Geochimica et Cosmochimica Acta, 1998, Volume 62, Number 12, Pages 2179-2196","www.creationismonline.com/YEC/Rubidium_Strontium_02.xlsm","Rb-Sr_13",null,14,null,null,null,null,null,null,null,null,null,null,14,null,14]
[141,"Geochimica et Cosmochimica Acta 72 (2008) 5819-5837","www.creationismonline.com/YEC/Good.xlsm","Very_Old_09",null,14,null,null,null,14,null,null,null,null,null,null,null,null,14]
[142,"Earth and Planetary Science Letters, 1989, Volume 94, Pages 239","www.creationismonline.com/YEC/Very_Old_A_4.xls","Very_Old_A_4",null,14,3,1,null,null,null,11,null,null,3,null,null,null,14]
[143,"Meteoritics And Planetary Science, 1997, Volume 32, Pages 647 - 670","www.creationismonline.com/YEC/Dating_Methods.xlsm","Kunz ",null,14,3,1,null,null,14,null,null,null,null,null,null,null,14]
[144,"Lithos, Volume 117, 2010, Pages 1-19","www.creationismonline.com/YEC/Impossible.xlsm","Older_01",15,15,8,8,null,null,null,null,null,null,null,36,null,null,36]
[145,"Journal Of Petrology, 1998, Volume 39 Number 11-12, Pages 1847-1864","www.creationismonline.com/YEC/Excellent.xlsm","Excellent_37",null,15,null,null,null,null,null,101,null,null,null,null,null,null,101]
[146,"Earth and Planetary Science Letters, Volume 90, 1988, Pages 26-40","www.creationismonline.com/YEC/Neodymium_Samarium.xlsm","Nd_Sm_05",null,15,null,null,null,null,null,15,null,null,null,null,null,null,15]
[147,"Geochimica et Cosmochimica Acta, 1992, Volume 56, Pages 1673-1694","www.creationismonline.com/YEC/Neodymium_Samarium.xlsm","Nd_Sm_15",null,15,null,null,null,null,null,19,null,null,null,null,null,null,19]
[148,"Earth and Planetary Science Letters, Volume 90, 1988, Pages 26-40","www.creationismonline.com/YEC/Rubidium_Strontium_01.xlsm","Rb-Sr_20",null,15,null,null,null,null,null,15,null,null,null,null,null,null,15]
[149,"Journal Of Petrology, 1999, Volume 40, Number 9, Pages 1399-1424","www.creationismonline.com/YEC/Rubidium_Strontium_01.xlsm","Rb-Sr_48",null,15,6,6,null,null,null,6,6,null,6,null,null,null,18]
[150,"Journal Of Petrology, 1999, Volume 40, Number 9, Pages 1399-1424","www.creationismonline.com/YEC/Plot_Index.xlsm","Iso_Plot_016",null,15,6,6,null,null,null,6,6,null,3,null,null,null,15]
[151,"Geochemica Et Cosmochemica Acta, 1990, Volume 54, pages 2549 - 2564","www.creationismonline.com/YEC/Dating_Methods.xlsm","BOGARD_A",null,15,3,2,null,15,null,null,null,null,null,null,null,null,15]
[152,"Contributions Mineral Petrology (1985) 90, Pages 162-171","www.creationismonline.com/YEC/Excellent.xlsm","Excellent_01",null,16,null,null,null,null,null,16,null,null,null,null,null,null,16]
[153,"Isotope Geoscience, 1 (1983) Pages 23-38","www.creationismonline.com/YEC/Excellent.xlsm","Excellent_06",null,16,null,null,null,null,null,15,null,null,null,null,null,null,15]
[154,"Earfh and Planetary Science Letters, 94 (1989) Pages 236-244","www.creationismonline.com/YEC/Excellent.xlsm","Excellent_13",null,16,null,1,null,null,null,52,null,null,null,null,null,null,52]
[155,"Geochemistry, Geophysics And Geosystems, February 14, 2000","www.creationismonline.com/YEC/Excellent.xlsm","Excellent_41",null,16,null,null,null,null,null,14,null,null,null,null,null,null,14]
[156,"Journal Of Petrology, 2001, Volume 42, Number 7, Pages 1387-1400","www.creationismonline.com/YEC/Rubidium_Strontium_02.xlsm","Rb-Sr_02",null,16,5,null,null,null,null,8,null,null,8,null,null,null,16]
[157,"Meteoritics & Planetary Science, 2007, Volume 42, Numbers 7/8, Pages 1337 - 1350","www.creationismonline.com/YEC/Plot_Index.xlsm","Iso_Plot_002",null,16,null,null,null,null,null,15,null,null,1,null,null,null,16]
[158,"http://petrology.oxfordjournals.org/content/suppl/2006/12/23/egl053.DC1/Electronic_Appendices_1-5.xls","www.creationismonline.com/YEC/Very_Old_N.xls","Very_Old_N",null,16,null,null,null,null,null,16,null,null,null,null,null,null,16]
[159,"International Earth Science, 2002, Volume 91, Pages 406-432","www.creationismonline.com/YEC/Th-Pb.xlsm","232_Th_10",null,17,3,2,null,null,null,3,15,null,null,null,null,null,18]
[160,"Earth and Planetary Science Letters 245 (2006) 743-761","www.creationismonline.com/YEC/Research.xlsm","Pb_207_03",null,17,null,null,null,null,null,17,null,null,null,null,null,null,17]
[161,"Journal Of Petrology, 2010, Volume 51, Number 7, Pages 1417-1445","www.creationismonline.com/YEC/Rubidium_Strontium_02.xlsm","Rb-Sr_10",null,17,null,null,null,null,null,17,null,null,null,null,null,null,17]
[162,"http://petrology.oxfordjournals.org/content/suppl/2004/04/19/45.5.1069.DC1/egh004supp.xls","www.creationismonline.com/YEC/Very_Old_U.xls","Very_Old_U",null,17,null,null,null,null,null,17,null,null,null,null,null,null,17]
[163,"Meteoritics And Planetary Science, 2007, Volume 42, Numbers 7/8, Pages 1321 - 1335","www.creationismonline.com/YEC/Dating_Methods.xlsm","Amelin_C",null,17,1,null,null,null,null,null,null,null,17,null,null,null,17]
[164,"Geochemica Et Cosmochemica Acta, 1958, Volume 15, Pages 40 - 50","www.creationismonline.com/YEC/Dating_Methods.xlsm","Stoenner",null,17,6,1,17,null,null,null,null,null,null,null,null,null,17]
[165,"Precambrian Research 72 ( 1995 ) 247-261","www.creationismonline.com/YEC/Research.xlsm","U_238_01",null,18,null,null,null,null,null,18,null,null,null,null,null,null,18]
[166,"Geochimica et Cosmochimica Acta, 2002, Volume 66, Number 10, Pages 1821-1837","www.creationismonline.com/YEC/Rubidium_Strontium_02.xlsm","Rb-Sr_05",8,18,null,null,null,null,null,18,null,null,null,null,11,null,29]
[167,"http://petrology.oxfordjournals.org/content/suppl/2007/08/13/egm050v1.DC1/jpet-jul-07-0104-File002.xls","www.creationismonline.com/YEC/Very_Old_W.xls","Very_Old_W",null,18,null,null,null,null,null,18,null,null,null,null,null,null,18]
[168,"www.geokem.com/files/Av-Andesite2.xls","www.creationismonline.com/YEC/Very_Old_A_1.xls","Very_Old_A_1",null,18,null,null,null,null,null,18,null,null,null,null,null,null,18]
[169,"Lithos, Volume 102, 2008, Pages 43-64","www.creationismonline.com/YEC/Impossible.xlsm","Older_04",73,19,9,7,null,null,92,null,null,null,null,null,null,null,92]
[170,"Earth and Planetary Science Letters 244 (2006) Page 251-269","www.creationismonline.com/YEC/Excellent.xlsm","Excellent_24",null,19,null,null,null,null,null,null,null,5,null,null,null,null,5]
[171,"Earth and Planetary Science Letters, 76 (1985) Pages 57-70","www.creationismonline.com/YEC/Excellent.xlsm","Excellent_33",null,19,null,null,null,null,null,40,3,null,2,null,null,null,45]
[172,"Geochimica et Cosmochimica Acta, Vol. 61, No. 23, pp. 5005-5022, 1997","www.creationismonline.com/YEC/Lead_206_207.xlsm","Pb-206_17",null,19,null,null,null,null,null,17,null,null,null,null,null,null,17]
[173,"Geochimica et Cosmochimica Acta, 2003, Volume 67, Number 23, Pages 4577-4595","www.creationismonline.com/YEC/Rubidium_Strontium_02.xlsm","Rb-Sr_06",null,19,5,4,null,null,null,8,null,6,5,null,null,null,19]
[174,"Geochimica et Cosmochimica Acta, 2005, Volume 69, Number 24, Pages 5819-5830","www.creationismonline.com/YEC/Rubidium_Strontium_02.xlsm","Rb-Sr_07",null,19,null,null,null,null,null,15,null,1,2,null,1,null,19]
[175,"Canadian Journal Of Earth Science, 1987, Volume 24, Pages 24-30","www.creationismonline.com/YEC/Rubidium_Strontium_02.xlsm","Rb-Sr_08",null,19,12,12,null,null,null,6,null,6,6,null,1,null,19]
[176,"Meteoritics & Planetary Science 33, Page 921-935 (1998)","www.creationismonline.com/YEC/Good.xlsm","Very_Old_03",null,19,null,null,null,19,null,null,null,null,null,null,null,null,19]
[177,"Precambrian Research, 1999, Volume 95, Pages 167 - 185","www.creationismonline.com/YEC/Plot_Index.xlsm","Iso_Plot_010",null,19,null,null,null,null,null,19,null,null,null,null,null,null,19]
[178,"Lithos, Volume  117, 2010, Pages 1-19","www.creationismonline.com/YEC/Future.xlsm","Future_Ages_01",19,20,8,7,null,null,null,null,null,null,null,null,39,null,39]
[179,"Earth and Planetarv Science Letters, 46 (1980) Pages 221-232","www.creationismonline.com/YEC/Excellent.xlsm","Excellent_16",null,20,null,null,null,null,null,23,null,null,null,null,null,null,23]
[180,"Gondwana Research 14 (2008) Page 644-662","www.creationismonline.com/YEC/Excellent.xlsm","Excellent_27",null,20,null,null,null,null,null,44,null,null,null,null,null,null,44]
[181,"Geochimica et Cosmochimica Acta, 1992, Vol. 56, pp. 347-368","www.creationismonline.com/YEC/Lead_206_207.xlsm","Pb-206_16",null,20,null,null,null,null,null,22,null,null,null,null,null,null,22]
[182,"Geochimica et Cosmochimica Acta, 1986, Volume 50, Pages 2571-2585","www.creationismonline.com/YEC/Neodymium_Samarium.xlsm","Nd_Sm_14",null,20,null,null,null,null,null,23,null,null,null,null,null,null,23]
[183,"Geochimica et Cosmochimica Acta, 2010, Volume 74, Pages 1417-1435","www.creationismonline.com/YEC/Th-Pb.xlsm","Thorium_B",null,20,1,1,null,null,null,17,2,null,1,null,null,null,20]
[184,"Journal Of Petrology, 1998, Volume 39, Number 5, Pages 859-880 ","www.creationismonline.com/YEC/Neodymium_Samarium.xlsm","Nd_Sm_12",13,21,3,3,null,null,null,17,null,null,null,null,17,null,34]
[185,"Journal Of Petrology, 1998, Volume 39, Number 5, Pages 859-880 ","www.creationismonline.com/YEC/Rubidium_Strontium_01.xlsm","Rb-Sr_42",13,21,null,3,null,null,null,17,null,null,null,null,17,null,34]
[186,"Journal Of Petrology, 2001, Volume 42, Number 1, Pages 159-172","www.creationismonline.com/YEC/Rubidium_Strontium_02.xlsm","Rb-Sr_16",null,21,null,null,null,null,null,21,null,null,null,null,null,null,21]
[187,"Meteoritics & Planetary Science 40, Nr 9/10, 1433-1454 (2005)","www.creationismonline.com/YEC/Good.xlsm","Very_Old_02",null,21,null,null,null,21,null,null,null,null,null,null,null,null,21]
[188,"Lithos, Volume 102, 2008, Pages 43-64","www.creationismonline.com/YEC/Future.xlsm","Future_Ages_05",90,22,6,6,null,null,112,null,null,null,null,null,null,null,112]
[189,"Lithos, Volume 77, 2004, Pages 453-472","www.creationismonline.com/YEC/Negative.xlsm","Negative_19",16,22,2,2,null,null,8,18,null,null,null,7,null,6,39]
[190,"Contributions to Mineralogy and Petrology, Volume 114, 1993, Pages 171 - 188","www.creationismonline.com/YEC/Excellent.xlsm","Excellent_29",null,22,null,null,null,null,null,23,null,null,null,null,null,null,23]
[191,"Geochimica et Cosmochimica Acta, Vol. 62, No. 21/22, pp. 3527-3540, 1998","www.creationismonline.com/YEC/Lead_206_207.xlsm","Pb-206_13",null,22,6,null,null,null,null,13,3,null,5,null,null,null,21]
[192,"Precambrian Research, 57 (1992) 91-119","www.creationismonline.com/YEC/Good.xlsm","Very_Old_16",3,22,null,null,null,25,null,null,null,null,null,null,null,null,25]
[193,"Earth And Planetary Science Letters, 2004, Volume 223, Page 360","www.creationismonline.com/YEC/Dating_Methods.xlsm","Older_1",null,22,2,1,null,null,2,null,null,null,null,null,null,null,2]
[194,"Earth and Planetary Science Letters 244 (2006) Page 251-269","www.creationismonline.com/YEC/Excellent.xlsm","Excellent_17",null,23,null,null,null,null,null,null,null,5,null,null,null,null,{"$f":"SUM(I195:R195)","v":5}]
[195,"Nature, Volume 368, 1994, Page 514 - 519 ","www.creationismonline.com/YEC/Excellent.xlsm","Excellent_30",null,23,null,null,null,null,null,81,null,null,null,null,null,null,81]
[196,"Geochimica et Cosmochimica Acta 73 (2009) 469-488","www.creationismonline.com/YEC/Lead_206_207.xlsm","Pb-206_22",null,23,null,null,null,null,null,22,null,null,null,null,null,null,22]
[197,"Journal Of Petrology, 2008, Volume 49, Number 6, Pages 1069-1096","www.creationismonline.com/YEC/Rubidium_Strontium_01.xlsm","Rb-Sr_33",null,23,null,null,null,null,null,23,null,null,null,null,null,null,23]
[198,"Geochimica et Cosmochimica Acta, Vol. 64, No. 4, pp. 717-732, 2000","www.creationismonline.com/YEC/Good.xlsm","Very_Old_01",null,23,null,null,23,null,null,null,null,null,null,null,null,null,23]
[199,"Earth and Planetary Science Letters, 1973, Volume 19, Pages 321-329","www.creationismonline.com/YEC/Dating_Methods.xlsm","Tilton",null,23,null,null,null,null,null,null,16,null,4,4,null,null,24]
[200,"Mineralium Deposita (1999) 34, Pages 273-283","www.creationismonline.com/YEC/Excellent.xlsm","Excellent_04",null,24,null,null,null,null,null,24,null,null,null,null,null,null,24]
[201,"Journal Of Petrology, 2007, Volume 48, Number 4, Pages 661-692","www.creationismonline.com/YEC/Rubidium_Strontium_01.xlsm","Rb-Sr_46",null,24,2,null,null,null,null,6,6,6,6,null,null,null,24]
[202,"Journal Of Petrology, 2007, Volume 48, Number 4, Pages 661-692","www.creationismonline.com/YEC/Plot_Index.xlsm","Iso_Plot_007",null,24,2,null,null,null,null,6,6,6,6,null,null,null,24]
[203,"Lithology and Mineral Resources, 2011, Volume 46, Number 2, Pages 151-164","www.creationismonline.com/YEC/Th-Pb.xlsm","232_Th_05",null,25,2,null,null,null,null,10,8,null,6,null,null,null,24]
[204,"Geochimica et Cosmochimica Acta, 1976, Volume 40, Pages 635 - 643","www.creationismonline.com/YEC/Plot_Index.xlsm","Iso_Plot_020",null,25,null,null,null,null,null,27,null,null,null,null,null,null,27]
[205,"Earth and Planetary Science Letters, 1967, Volume 2, Pages 397 - 408","www.creationismonline.com/YEC/Dating_Methods.xlsm","Burnett",null,25,null,null,null,null,null,null,null,null,null,null,null,null,0]
[206,"Geological Society Of London, Special Publications, 2004, Volume 229, Pages 133-150.","www.creationismonline.com/YEC/Excellent.xlsm","Excellent_34",null,26,3,1,null,null,null,26,null,null,null,null,null,null,26]
[207,"Journal Analytical Atomic Spectrometry, 2002, Volume 17, Pages 922-928","www.creationismonline.com/YEC/Excellent.xlsm","Excellent_35",null,26,null,null,null,null,null,5,null,null,null,null,null,null,5]
[208,"Chemical Geology, Volume 277 (2010), Pages 227-244","www.creationismonline.com/YEC/Excellent.xlsm","Excellent_44",null,26,13,10,null,null,null,7,null,null,null,null,null,null,7]
[209,"Earth and Planetary Science Letters, Volume 42, 1979, Pages 58-70","www.creationismonline.com/YEC/Rubidium_Strontium_01.xlsm","Rb-Sr_03",null,26,12,11,null,null,null,14,null,null,null,null,12,null,26]
[210,"Mereoritics And PIanetary Science, 2000, Volume 35, Pages 341 - 346","www.creationismonline.com/YEC/Plot_Index.xlsm","Iso_Plot_012",null,26,2,null,null,null,null,13,null,null,13,null,null,null,26]
[211,"Geochemistry, Geophysics And Geosystems, Volume 7, Number 11, 2006","www.creationismonline.com/YEC/GOOD.xlsm","GOOD_F",null,27,null,null,null,null,null,21,null,6,null,null,null,null,27]
[212,"http://www.geo.uu.nl/~kikeb/thesis/database/upb/KB746.xls","www.creationismonline.com/YEC/Very_Old_B.xls","Very_Old_B",null,27,null,null,null,null,null,null,27,null,null,null,null,null,27]
[213,"Geochimica et Cosmochimica Acta, 2006, Volume 70, Page 2573-2575","www.creationismonline.com/YEC/Dating_Methods.xlsm","Older_9",null,27,null,null,null,null,27,null,null,null,null,null,null,null,27]
[214,"Contrib Mineral Petrology, 2002, Volume 144, Pages 241-253","www.creationismonline.com/YEC/Th-Pb.xlsm","232_Th_09",null,28,9,9,null,null,null,10,10,10,10,null,null,null,40]
[215,"Meteoritics & Planetary Science 46, Nr 1, 35-52 (2011)","www.creationismonline.com/YEC/Lead_206_207.xlsm","Pb-206_08",null,28,3,2,null,null,null,6,null,10,null,null,null,null,16]
[216,"Geochimica et Cosmochimica Acta, Vol. 61, No. 8, pp. 1713-1731, 1997","www.creationismonline.com/YEC/Lead_206_207.xlsm","Pb-206_15",null,28,null,null,null,null,null,36,null,null,null,null,null,null,36]
[217,"Geochimica et Cosmochimica Acta, 1995, Volume 59, Number 12, Pages 2573-2598","www.creationismonline.com/YEC/Neodymium_Samarium.xlsm","Nd_Sm_17",null,28,null,null,null,null,null,28,null,null,null,null,null,null,28]
[218,"Earth and Planetary Science Letters, Volume 244, 2006, Pages 234-250","www.creationismonline.com/YEC/Rubidium_Strontium_01.xlsm","Rb-Sr_28",null,28,null,null,null,null,null,29,null,null,null,null,null,null,29]
[219,"http://petrology.oxfordjournals.org/content/suppl/2007/11/12/egm059.DC1/jpet-jul-07-0097-File018.xls","www.creationismonline.com/YEC/Very_Old_S.xls","Very_Old_S",null,28,null,null,null,null,null,28,null,null,null,null,null,null,28]
[220,"Geochimica et Cosmochimica Acta, 2006, Volume 70, Pages 2562-2576","www.creationismonline.com/YEC/Good.xlsm","Good_08",null,29,null,null,null,29,null,null,null,null,null,null,null,null,29]
[221,"http://petrology.oxfordjournals.org/content/suppl/2000/06/26/41.7.951.DC1/egd056SUPPLEM.xls","www.creationismonline.com/YEC/Very_Old_T.xls","Very_Old_T",null,29,null,null,null,null,null,29,null,null,null,null,null,null,29]
[222,"Journal Of Geophysical Research, 2011, Volume 116, Page E12008","www.creationismonline.com/YEC/Th-Pb.xlsm","232_Th_07",null,30,null,null,null,null,null,31,null,null,null,null,null,null,31]
[223,"Earth and Planetary Science Letters 142 (1996) 501-512","www.creationismonline.com/YEC/Lead_206_207.xlsm","Pb-206_02",null,30,null,null,null,null,null,30,null,null,null,null,null,null,30]
[224,"Precambrian Research 78 (1996) 261-272","www.creationismonline.com/YEC/Research.xlsm","Pb_207_15",null,30,null,null,null,null,null,30,null,null,null,null,null,null,30]
[225,"Geochimica et Cosmochimica Acta, 2006, Volume 70, Pages 5990-6015","www.creationismonline.com/YEC/Rubidium_Strontium_02.xlsm","Rb-Sr_11",null,30,30,30,null,null,null,null,null,null,null,30,null,null,30]
[226,"Geochimica et Cosmochimica Acta, Vol. 63, No. 3/4, pp. 473-488, 1999","www.creationismonline.com/YEC/Lead_206_207.xlsm","Pb-206_14",null,31,null,null,null,null,null,28,null,null,null,null,null,null,28]
[227,"http://petrology.oxfordjournals.org/content/suppl/2011/05/11/egr024.DC1/Suppl_Table_1.xls","www.creationismonline.com/YEC/Very_Old_P.xls","Very_Old_P",null,31,null,null,null,null,null,31,null,null,null,null,null,null,31]
[228,"Earth and Planetary. Science Letters, 94 (1989) Pages 78-96","www.creationismonline.com/YEC/Excellent.xlsm","Excellent_08",null,32,null,null,null,null,null,13,null,null,null,null,null,null,13]
[229,"Journal Of Petrology, 1997, Volume 38, Number 1, Pages 115-132","www.creationismonline.com/YEC/Rubidium_Strontium_01.xlsm","Rb-Sr_34",null,32,null,null,null,null,null,16,11,null,6,null,6,null,39]
[230,"Gondwana Research 11 (2007) Page 69-91","www.creationismonline.com/YEC/Excellent.xlsm","Excellent_25",null,33,null,null,null,null,null,47,null,null,null,null,null,null,47]
[231,"Journal Of Petrology, 1998, Volume 39, Number 4, Pages 749-783","www.creationismonline.com/YEC/Rubidium_Strontium_02.xlsm","Rb-Sr_09",null,33,null,null,null,null,null,33,null,null,null,null,null,null,33]
[232,"Journal Of Petrology, 1997, Volume 38, Number 1, Pages 115-132","www.creationismonline.com/YEC/Plot_Index.xlsm","Iso_Plot_017",null,33,1,null,null,null,null,16,11,null,7,null,null,null,34]
[233,"Earth and Planetary Science Letters, 1983, Volume 62, pages 132 - 146","www.creationismonline.com/YEC/Dating_Methods.xlsm","BOGARD_C",null,34,20,20,null,4,null,10,10,null,10,null,null,null,34]
[234,"Chemical Geology, Volume 208, 2004, Pages 89-118","www.creationismonline.com/YEC/Impossible.xlsm","Greater_02",93,35,11,8,null,null,126,null,null,null,null,null,null,null,126]
[235,"Earth and Planetary Science Letters 319-320 (2012) 197-206","www.creationismonline.com/YEC/Research.xlsm","Th_232_01",null,35,24,19,null,null,null,13,11,null,11,null,null,null,35]
[236,"Earth and Planetary Science Letters, Volume 75, 1985, Pages 354-368","www.creationismonline.com/YEC/Rubidium_Strontium_01.xlsm","Rb-Sr_17",null,35,3,6,null,null,null,25,null,null,null,null,15,null,40]
[237,"Earth and Planetary Science Letters 296 (2010) 267-277","www.creationismonline.com/YEC/Research.xlsm","Pb_207_05",null,36,null,null,null,null,null,36,null,null,null,null,null,null,36]
[238,"Earth and Planetary Science Letters 245 (2006) 137-152","www.creationismonline.com/YEC/Research.xlsm","Pb_207_12",null,36,null,null,null,null,null,36,null,null,null,null,null,null,36]
[239,"Geochimica et Cosmochimica Acta, 1990, Voume 54, Pages 3509-3523","www.creationismonline.com/YEC/Rubidium_Strontium_01.xlsm","Rb-Sr_02",null,36,9,2,null,null,null,null,null,null,null,null,37,null,37]
[240,"Geochimica et Cosmochimica Acta, 2008, Volume 72, Pages 2067 - 2089","www.creationismonline.com/YEC/Rubidium_Strontium_01.xlsm","Rb-Sr_50",3,36,11,9,null,null,null,17,6,null,22,null,null,null,45]
[241,"Earth and Planetary Science Letters 301 (2011) 469-478","www.creationismonline.com/YEC/Research.xlsm","Pb_207_01",null,37,null,null,null,null,null,37,null,null,null,null,null,null,37]
[242,"Earth and Planetary Science Letters, 104 (1991) 1-15","www.creationismonline.com/YEC/Research.xlsm","Pb_207_02",null,37,null,null,null,null,null,37,null,null,null,null,null,null,37]
[243,"Meteoritics & Planetary Science, 2004, Volume 39, Number 12, Pages 2033 - 2041","www.creationismonline.com/YEC/Plot_Index.xlsm","Iso_Plot_001",null,37,12,6,null,null,null,14,17,null,8,null,null,null,39]
[244,"Precambrian Research, 1989, Volume 42, Pages 255 - 291","www.creationismonline.com/YEC/Dating_Methods.xlsm","Hall",null,37,null,null,null,null,37,null,null,null,null,null,null,null,37]
[245,"Journal Of Petrology, 2010, Volume 51, Number 10, Pages 2003-2045","www.creationismonline.com/YEC/Rubidium_Strontium_01.xlsm","Rb-Sr_39",null,38,null,null,null,null,null,19,19,1,1,null,null,null,40]
[246,"Journal Of Petrology, 2001, Volume 42, Number 4, Pages 731-763","www.creationismonline.com/YEC/Plot_Index.xlsm","Iso_Plot_013",null,38,28,21,null,null,null,1,null,null,37,null,null,null,38]
[247,"Chemical Geology, Volume 277, 2010, Pages 227-244","www.creationismonline.com/YEC/GOOD.xlsm","GOOD_N",null,39,14,10,null,null,null,13,13,null,13,null,null,null,39]
[248,"Chemical Geology, 93 (1991) Pages 231-243","www.creationismonline.com/YEC/Excellent.xlsm","Excellent_12",null,39,null,null,null,null,null,13,null,null,3,null,null,null,16]
[249,"Earth and Planetary Science Letters, 34 (1977) 419-431","www.creationismonline.com/YEC/Research.xlsm","Pb_207_11",null,39,null,null,null,null,null,39,null,null,null,null,null,null,39]
[250,"Geochimica et Cosmochimica Acta, 2001, Volume 65, Number 22, Pages 4243-4255","www.creationismonline.com/YEC/Rubidium_Strontium_02.xlsm","Rb-Sr_03",null,39,null,null,null,null,null,28,null,null,11,null,null,null,39]
[251,"Chemical Geology, 2009, Volume 259, Pages 143 - 151","www.creationismonline.com/YEC/Plot_Index.xlsm","Iso_Plot_014",null,41,null,null,null,null,null,41,null,null,null,null,null,null,41]
[252,"Chemical Geology 236 (2007) Pages 27-41","www.creationismonline.com/YEC/Excellent.xlsm","Excellent_10",null,42,null,1,null,null,null,44,null,null,null,null,null,null,44]
[253,"Precambrian Research 114 (2002) 277-294","www.creationismonline.com/YEC/Research.xlsm","Pb_207_14",null,43,null,null,null,null,null,45,null,null,null,null,null,null,45]
[254,"Geochemistry And Geophysics Geosystems, 2006, Volume 7, Number 8, Pages 1-29","www.creationismonline.com/YEC/Excellent.xlsm","Excellent_21",null,44,null,null,null,null,null,12,null,null,null,null,null,null,12]
[255,"Journal Of Petrology, 2004, Volume 45, Number 3, Pages 555-607","www.creationismonline.com/YEC/Rubidium_Strontium_01.xlsm","Rb-Sr_45",null,44,13,9,null,null,null,12,12,6,11,null,null,null,41]
[256,"Journal Of Petrology, 2004, Volume 45, Number 3, Pages 555-607","www.creationismonline.com/YEC/Plot_Index.xlsm","Iso_Plot_006",null,44,13,9,null,null,null,13,13,6,12,null,null,null,44]
[257,"http://petrology.oxfordjournals.org/content/suppl/2010/03/31/egq009.DC1/ElecApp_A12_TephraFromOutsideIzuBonin.xls","www.creationismonline.com/YEC/Very_Old_V.xls","Very_Old_V",null,44,null,null,null,null,null,44,null,null,null,null,null,null,44]
[258,"Geochimica el Cosmochimica Acta, 1991, Volume 55, Pages 2025-2043","www.creationismonline.com/YEC/Rubidium_Strontium_02.xlsm","Rb-Sr_04",null,45,null,null,null,null,null,45,null,null,null,null,null,null,{"$f":"SUM(I259:R259)","v":45}]
[259,"Geochimica et Cosmochimica Acta, 2008, Volume 72, Pages 2067 - 2089","www.creationismonline.com/YEC/Plot_Index.xlsm","Iso_Plot_018",null,45,16,13,null,null,null,19,2,null,18,null,null,null,39]
[260,"http://georoc.mpch-mainz.gwdg.de/georoc/","www.creationismonline.com/YEC/Very_Old_B_9.xlsx","Very_Old_B_9",null,45,null,null,null,null,null,45,null,null,null,null,null,null,45]
[261,"Precambrian Research 113 (2002) 155-168","www.creationismonline.com/YEC/Research.xlsm","Pb_207_16",null,46,null,null,null,null,null,43,null,null,null,null,null,null,43]
[262,"Earth and Planetary Science Letters 134 (1995) 169-185","www.creationismonline.com/YEC/Research.xlsm","Th_232_03",null,46,4,1,null,null,null,20,20,null,6,null,null,null,46]
[263,"Earth and Planetary Science Letters, Volume 134, 1995, Pages 169-185","www.creationismonline.com/YEC/Rubidium_Strontium_01.xlsm","Rb-Sr_25",null,46,null,1,null,null,null,20,20,null,7,null,null,null,47]
[264,"Meteoritics And Planetary Science, 2009, Volume 44, Number 2, Pages 293 - 321","www.creationismonline.com/YEC/Dating_Methods.xlsm","Korochantseva",null,46,9,2,null,46,null,null,null,null,null,null,null,null,46]
[265,"Gondwana Research 11 (2007) Page 382-395","www.creationismonline.com/YEC/Excellent.xlsm","Excellent_19",null,47,null,null,null,null,null,8,null,null,null,null,null,null,8]
[266,"Journal Of Petrology, April 11, 2012, Pages 1-32","www.creationismonline.com/YEC/Excellent.xlsm","Excellent_39",null,47,4,4,null,null,null,5,null,null,null,null,null,null,5]
[267,"Nature, 1979, Volume 277, Pages 554 - 556","www.creationismonline.com/YEC/Good.xlsm","Good_03",null,47,1,null,null,47,null,null,null,null,null,null,null,null,47]
[268,"http://petrology.oxfordjournals.org/content/suppl/2008/03/20/egn018.DC1/jpet-jun-07-0081-File027.xls","www.creationismonline.com/YEC/Very_Old_M.xls","Very_Old_M",null,48,null,null,null,null,null,48,null,null,null,null,null,null,48]
[269,"Journal Of Petrology, Volume 0, Number 0, Pages 1-32, 2012 ","www.creationismonline.com/YEC/GOOD.xlsm","GOOD_M",null,49,4,4,null,null,null,23,21,null,3,null,null,null,47]
[270,"Earth and Planetary Science Letters, Volume 319-320, 2012, Pages 197-206","www.creationismonline.com/YEC/Th-Pb.xlsm","232_Th_02",null,49,23,19,null,null,null,13,12,12,12,null,null,null,49]
[271,"Geochimica et Cosmochimica Acta 73 (2009) 469-488","www.creationismonline.com/YEC/Th-Pb.xlsm","Thorium_C",null,52,12,7,null,null,null,36,9,null,5,null,null,null,50]
[272,"Earth and Planetary Science Letters, 2008,  doi:10.1016/j.epsl.2008.08.023","www.creationismonline.com/YEC/GOOD.xlsm","GOOD_S",null,53,null,null,null,null,null,53,null,null,null,null,null,null,53]
[273,"Geochimica et Cosmochimica Acta, Volume 73, 2009, Pages 469-488","www.creationismonline.com/YEC/Th-Pb.xlsm","232_Th_04",null,53,13,8,null,null,null,37,11,null,6,null,null,null,54]
[274,"Journal Of Geophysical Research, 1998, Volume 103, Number B9, Pages 20,963-20,979","www.creationismonline.com/YEC/Neodymium_Samarium.xlsm","Nd_Sm_13",null,56,6,1,null,null,null,27,22,null,9,null,null,null,58]
[275,"Journal Of Geophysical Research, 1998, Volume 103, Number B9, Pages 20,963-20,979","www.creationismonline.com/YEC/Rubidium_Strontium_01.xlsm","Rb-Sr_49",null,56,6,1,null,null,null,27,22,null,8,null,null,null,57]
[276,"Earth and Planetary Science Letters, 47 (1980) Pages 370-382","www.creationismonline.com/YEC/Excellent.xlsm","Excellent_14",null,57,null,null,null,null,null,12,null,null,null,null,null,null,12]
[277,"http://pubs.usgs.gov/of/2008/1142/tables/table04.xls","www.creationismonline.com/YEC/Very_Old_A_9.xls","Very_Old_A_9",null,57,23,18,null,null,null,20,20,null,18,null,null,null,58]
[278,"Earth and Planetary Science Letters, Volume 183, 2000, Pages 73-92","www.creationismonline.com/YEC/Neodymium_Samarium.xlsm","Nd_Sm_10",null,58,null,null,null,null,null,58,null,null,null,null,null,null,58]
[279,"Earth and Planetary Science Letters, Volume 183, 2000, Pages 73-92","www.creationismonline.com/YEC/Rubidium_Strontium_01.xlsm","Rb-Sr_27",null,58,null,null,null,null,null,58,null,null,null,null,null,null,58]
[280,"Geochimica et Cosmochimica Acta, 1997, Volume 61, Number 8, Pages 1713-1731","www.creationismonline.com/YEC/Rubidium_Strontium_02.xlsm","Rb-Sr_18",null,58,null,null,null,null,null,58,null,null,null,null,null,null,58]
[281,"Geochemica Et Cosmochemica Acta, 1976, Volume 40, pages 617 - 634","www.creationismonline.com/YEC/Dating_Methods.xlsm","Tatsumoto",null,60,6,2,null,null,null,null,16,18,28,null,null,null,62]
[282,"Earth And Planetary Science Letters, Volume 302, 2011, Pages 154-162","www.creationismonline.com/YEC/GOOD.xlsm","GOOD_L",null,63,null,null,null,null,null,63,null,null,null,null,null,null,63]
[283,"Precambrian Research 162 (2008) 441-474","www.creationismonline.com/YEC/Research.xlsm","Pb_207_13",null,63,null,null,null,null,null,46,null,null,null,null,null,null,46]
[284,"Geochimica et Cosmochimica Acta, 1995, Volume 59, Number 11, Pages 2319-2329","www.creationismonline.com/YEC/Th-Pb.xlsm","Thorium_E",null,63,32,30,null,null,null,19,16,null,15,null,null,null,50]
[285,"Earth and Planetary Science Letters, Volume 105, 1991, Pages 149-169","www.creationismonline.com/YEC/Neodymium_Samarium.xlsm","Nd_Sm_07",24,65,12,9,null,null,null,26,24,null,16,null,24,null,90]
[286,"Earth and Planetary Science Letters, Volume 105, 1991, Pages 149-169","www.creationismonline.com/YEC/Rubidium_Strontium_01.xlsm","Rb-Sr_22",24,65,12,9,null,null,null,26,24,null,16,null,24,null,90]
[287,"Geochemistry, Geophysics And Geosystems, 2005, Volume 6, Number 11","www.creationismonline.com/YEC/Excellent.xlsm","Excellent_47",null,66,null,null,null,null,null,123,null,null,null,null,null,null,123]
[288,"Geochimica et Cosmochimica Acta 72 (2008) 5799-5818","www.creationismonline.com/YEC/Lead_206_207.xlsm","Pb-206_23",null,66,12,7,null,null,null,25,10,null,6,null,null,null,41]
[289,"Journal Of Petrology, Page 1 Of 45, Doi:10.1093/petrology/egl025","www.creationismonline.com/YEC/GOOD.xlsm","GOOD_R",null,67,null,null,null,null,null,67,null,null,null,null,null,null,67]
[290,"Earth and Planetary Science Letters, 1981, Volume 55, Pages 123 - 149","www.creationismonline.com/YEC/Good.xlsm","Good_01",null,71,null,null,null,71,null,null,null,null,null,null,null,null,71]
[291,"Geochimica et Cosmochimica Acta, 1993, Volume 57, Pages 4687-4702","www.creationismonline.com/YEC/Neodymium_Samarium.xlsm","Nd_Sm_09",null,72,19,14,null,null,null,28,23,9,24,null,null,null,84]
[292,"Geochimica et Cosmochimica Acta, 1993, Volume 57, Pages 4687-4702","www.creationismonline.com/YEC/Rubidium_Strontium_01.xlsm","Rb-Sr_26",null,72,19,14,null,null,null,23,24,9,24,null,null,null,80]
[293,"Earth and Planetary Science Letters 300 (2010) 152-163","www.creationismonline.com/YEC/Lead_206_207.xlsm","Pb-206_05",null,73,null,null,null,null,null,73,null,null,null,null,null,null,73]
[294,"www.ldeo.columbia.edu/~cai/Pb.xls","www.creationismonline.com/YEC/Very_Old_D.xls","Very_Old_D",null,74,null,null,null,null,null,74,null,null,null,null,null,null,74]
[295,"Geochimica et Cosmochimica Acta, 2002, Volume 66, Number 14, Pages 2569-2581","www.creationismonline.com/YEC/Neodymium_Samarium.xlsm","Nd_Sm_19",null,75,null,null,null,null,null,48,null,null,null,null,null,null,48]
[296,"Geology Magazine, Volume 141, Number 1, 2004, Pages 55-62","www.creationismonline.com/YEC/GOOD.xlsm","GOOD_D",null,76,9,9,null,null,null,38,null,null,38,null,null,null,76]
[297,"Earth and Planetary Science Letters, 42 (1979) Pages 368-378","www.creationismonline.com/YEC/Excellent.xlsm","Excellent_22",null,76,17,9,null,null,null,20,null,null,null,null,null,null,20]
[298,"Geochimica et Cosmochimica Acta, 1970, Vol. 34, pp. 1039 to 1106.","www.creationismonline.com/YEC/Lead_206_207.xlsm","Pb-206_09",null,79,null,null,null,null,null,78,null,null,null,null,null,null,78]
[299,"Journal Of Geophysical Research, 1981, Volume 86, Number B11, Pages 10663-10680","www.creationismonline.com/YEC/Rubidium_Strontium_02.xlsm","Rb-Sr_14",null,79,46,32,null,null,null,25,28,null,26,null,null,null,79]
[300,"Science, Volume 282, 1998, Page 1481","www.creationismonline.com/YEC/Excellent.xlsm","Excellent_31",null,80,null,null,null,null,null,9,null,null,null,null,null,null,9]
[301,"Precambrian Research 90 (1998) 203-238","www.creationismonline.com/YEC/Research.xlsm","U_238_03",null,80,27,null,null,null,null,null,null,null,80,null,null,null,80]
[302,"Earth And Planetary Science Letters, 1972, Volume 14, Pages 281 - 304.","www.creationismonline.com/YEC/Dating_Methods.xlsm","Wasserburg",null,80,7,3,null,null,null,22,20,19,19,null,null,null,80]
[303,"Canadian Journal Of Earth Science, 2006, Volume 43, Pages 1419-1444","www.creationismonline.com/YEC/Neodymium_Samarium.xlsm","Nd_Sm_01",null,82,39,21,null,null,null,28,27,null,27,null,null,null,82]
[304,"Canadian Journal Of Earth Science, 2006, Volume 43, Pages 1419-1444","www.creationismonline.com/YEC/Rubidium_Strontium_01.xlsm","Rb-Sr_07",null,82,39,21,null,null,null,28,27,null,27,null,null,null,82]
[305,"Journal Of Petrology, Volume 0, Number 0, Pages 1-29, 2010 ","www.creationismonline.com/YEC/GOOD.xlsm","GOOD_B",null,85,null,null,null,null,null,85,null,null,null,null,null,null,85]
[306,"http://geosphere.gsapubs.org/content/suppl/2009/02/18/4.5.829.DC1/10.1130_GES00166-S1.xls","www.creationismonline.com/YEC/Very_Old_A_7.xls","Very_Old_A_7",null,86,null,null,null,null,null,86,null,null,null,null,null,null,86]
[307,"Geochimica et Cosmochimica Acta, 2001, Volume 65, Number 15, Pages 2555-2570","www.creationismonline.com/YEC/Neodymium_Samarium.xlsm","Nd_Sm_18",null,87,null,null,null,null,null,168,null,null,null,null,null,null,168]
[308,"Geochimica et Cosmochimica Acta, 2007, Volume 71, Pages 1583 - 1604","www.creationismonline.com/YEC/Plot_Index.xlsm","Iso_Plot_015",null,91,null,null,null,null,null,91,null,null,null,null,null,null,91]
[309,"Earth and Planetary Sctence Letters, 113 (1992) 107-128","www.creationismonline.com/YEC/Lead_206_207.xlsm","Pb-206_18",null,92,13,11,null,null,null,50,null,null,29,null,null,null,79]
[310,"Journal Of Petrology, 1998, Volume 39, Number 4, Pages 711-748","www.creationismonline.com/YEC/Rubidium_Strontium_01.xlsm","Rb-Sr_44",null,92,2,2,null,null,null,30,25,23,17,null,null,null,95]
[311,"Journal Of Petrology, 2001, Volume 42, Number 4, Pages 731-763","www.creationismonline.com/YEC/Rubidium_Strontium_01.xlsm","Rb-Sr_35",null,93,28,21,null,null,null,56,null,null,37,null,null,null,93]
[312,"http://www1.tecnet.or.jp/lab/data/db_sci/OIB.XLS","www.creationismonline.com/YEC/Very_Old_A_3.xls","Very_Old_A_3",null,93,null,null,null,null,null,93,null,null,null,null,null,null,93]
[313,"www.nature.com/nature/journal/v434/n7035/extref/nature03402-s1.xls","www.creationismonline.com/YEC/Very_Old_B_3.xls","Very_Old_B_3",null,93,null,null,null,null,null,93,null,null,null,null,null,null,93]
[314,"Journal Of Petrology, 1998, Volume 39, Number 4, Pages 711-748","www.creationismonline.com/YEC/Plot_Index.xlsm","Iso_Plot_005",null,95,2,2,null,null,null,30,25,28,21,null,null,null,104]
[315,"Earth and Planetary Science Letters 306 (2011) 86-97","www.creationismonline.com/YEC/Research.xlsm","Pb_207_06",null,96,null,null,null,null,null,96,null,null,null,null,null,null,96]
[316,"Earth And Planetary Science Letters 17 (1972) 36-51","www.creationismonline.com/YEC/Good.xlsm","Very_Old_15",null,98,null,null,null,null,null,35,21,21,21,null,null,null,98]
[317,"Ore Geology Reviews 31 (2007) Pages 337-359","www.creationismonline.com/YEC/Excellent.xlsm","Excellent_38",null,101,null,null,null,null,null,null,21,null,3,null,null,null,24]
[318,"Earth and Planetary Science Letters 240 (2005) 605- 620","www.creationismonline.com/YEC/Research.xlsm","Pb_207_04",null,104,null,null,null,null,null,104,null,null,null,null,null,null,104]
[319,"Chemical Geology, 1990, Volume 80, pages 201 - 204","www.creationismonline.com/YEC/Dating_Methods.xlsm","Maluski",null,104,40,12,null,null,104,null,null,null,null,null,null,null,104]
[320,"Earth and Planetary Science Letters, Volume 113, 1992, Pages 107-128","www.creationismonline.com/YEC/Neodymium_Samarium.xlsm","Nd_Sm_08",null,106,22,18,null,null,null,50,24,null,32,null,null,null,106]
[321,"Earth and Planetary Science Letters, Volume 113, 1992, Pages 107-128","www.creationismonline.com/YEC/Rubidium_Strontium_01.xlsm","Rb-Sr_23",null,106,22,18,null,null,null,50,24,null,32,null,null,null,106]
[322,"http://petrology.oxfordjournals.org/content/suppl/2007/02/14/egl079.DC1/egl079-jpet-may-06-0042-File004.xls","www.creationismonline.com/YEC/Very_Old_H.xls","Very_Old_H",null,106,null,null,null,null,null,106,null,null,null,null,null,null,{"$f":"SUM(I323:R323)","v":106}]
[323,"Geochimica et Cosmochimica Acta 71 (2007) 5514-5527","www.creationismonline.com/YEC/Lead_206_207.xlsm","Pb-206_25",null,113,null,null,null,null,null,113,null,null,null,null,null,null,113]
[324,"Mineral Deposita, 2010, Volume 45, Pages 393-410","www.creationismonline.com/YEC/Th-Pb.xlsm","232_Th_06",null,120,49,39,null,null,null,48,34,18,18,null,null,null,118]
[325,"Gcochimica et Cosmochimtca Acta, 1995, Volume 59, Number 2, Pages 381-390","www.creationismonline.com/YEC/Th-Pb.xlsm","Thorium_A",null,120,77,73,null,null,null,42,37,null,40,null,null,null,119]
[326,"Journal Of Petrology, 1998, Volume 39, Number 7, Pages 1285-1306","www.creationismonline.com/YEC/Plot_Index.xlsm","Iso_Plot_004",null,131,38,32,null,null,null,59,45,null,30,null,null,null,134]
[327,"ftp://rock.geosociety.org/pub/reposit/2008/2008019.xls","www.creationismonline.com/YEC/Very_Old_C_4.xls","Very_Old_C_4",null,147,null,null,null,null,null,147,null,null,null,null,null,null,147]
[328,"http://www1.tecnet.or.jp/lab/data/db_sci/MORB.xls","www.creationismonline.com/YEC/Very_Old_A_2.xls","Very_Old_A_2",null,152,null,null,null,null,null,152,null,null,null,null,null,null,152]
[329,"Geochimica et Cosmochimica Acta, 1994, Volume 58, Number 15, Pages 3155-3169","www.creationismonline.com/YEC/Th-Pb.xlsm","Thorium_D",null,169,34,21,null,null,null,100,1,null,69,null,null,null,170]
[330,"Earth and Planetarv Science Letters, 46 (1980) Pages 221-232","www.creationismonline.com/YEC/Excellent.xlsm","Excellent_23",null,172,null,null,null,null,null,23,null,null,null,null,null,null,23]
[331,"http://geosphere.gsapubs.org/content/suppl/2009/02/18/3.6.683.DC1/00138_App3.xls","www.creationismonline.com/YEC/Very_Old_E.xls","Very_Old_E",null,174,97,26,null,null,null,70,98,null,10,null,null,null,178]
[332,"www.geo.uu.nl/~kikeb/thesis/database/upb/KB770.xls","www.creationismonline.com/YEC/Very_Old_C.xls","Very_Old_B",null,181,27,7,null,null,null,null,181,null,null,null,null,null,181]
[333,"Journal Of Petrology, 2005, Volume 46, Number 4, Pages 829-858","www.creationismonline.com/YEC/Rubidium_Strontium_01.xlsm","Rb-Sr_47",null,192,75,57,null,null,null,70,70,null,52,null,null,null,192]
[334,"Journal Of Petrology, 2005, Volume 46, Number 4, Pages 829-858","www.creationismonline.com/YEC/Plot_Index.xlsm","Iso_Plot_009",null,192,75,57,null,null,null,70,70,null,55,null,null,null,195]
[335,"http://earthref.org/","www.creationismonline.com/YEC/Very_Old_C_3.xls","Very_Old_C_3",null,204,46,37,null,null,null,102,23,39,40,null,null,null,204]
[336,"http://pubs.usgs.gov/of/1987/0259/report.pdf","www.creationismonline.com/YEC/Very_Old_C_2.xls","Very_Old_C_2",null,207,null,null,null,null,null,207,null,null,null,null,null,null,207]
[337,"Economic Geology, Volume 97, 2002, Pages 23-42","www.creationismonline.com/YEC/Rubidium_Strontium_01.xlsm","Rb-Sr_05",null,221,219,218,null,null,null,null,null,null,null,null,224,null,224]
[338,"http://www.earthchem.org/deeplith/search","www.creationismonline.com/YEC/Very_Old_C_1.xls","Very_Old_C_1",null,245,11,6,null,null,null,216,10,null,27,null,null,null,253]
[339,"www.geo.unibe.ch/isotopegeology/homepbnd.xls","www.creationismonline.com/YEC/Very_Old_J.xls","Very_Old_J",null,264,null,null,null,null,null,264,null,null,null,null,null,null,264]
[340,"http://geosphere.gsapubs.org/content/suppl/2010/09/29/6.5.663.DC1/530_supp1.xls","www.creationismonline.com/YEC/Very_Old_A.xls","Very_Old_A",null,276,261,253,null,null,null,19,257,null,19,null,null,null,295]
[341,"http://geosphere.gsapubs.org/content/suppl/2012/03/19/GES00728.1.DC1/GS728_SuppT02.xls","www.creationismonline.com/YEC/Very_Old_A_6.xls","Very_Old_A_6",null,397,null,null,null,null,null,397,null,null,null,null,null,null,397]
[342,"www.nature.com/ngeo/journal/v4/n12/extref/ngeo1263-s1.xls","www.creationismonline.com/YEC/Very_Old_B_5.xls","Very_Old_B_5",null,440,null,null,null,null,null,440,null,null,null,null,null,null,440]
[343,"www.nature.com/nature/journal/v476/n7361/extref/nature10321-s2.xls","www.creationismonline.com/YEC/Very_Old_B_2.xls","Very_Old_B_2",null,446,null,null,null,null,null,446,null,null,null,null,null,null,446]
[344,"http://georoc.mpch-mainz.gwdg.de/georoc/webseite/Expert%20Datasets/Lustrino_Wilson09.xls","www.creationismonline.com/YEC/Very_Old_B_8.xlsx","Very_Old_B_8",null,1012,null,null,null,null,null,1012,null,null,null,null,null,null,1012]
[345,"www.ruf.rice.edu/~ctlee/BOXMODEL.xls","www.creationismonline.com/YEC/Very_Old_R.xls","Very_Old_R",null,1122,437,412,null,null,null,441,147,51,189,null,null,null,828]
[346,"http://petrology.oxfordjournals.org/content/suppl/2007/02/15/egl078.DC1/jpet-aug-06-0094-File006.xls","www.creationismonline.com/YEC/Very_Old_Y.xls","Very_Old_Y",null,1549,null,null,null,null,null,1549,null,null,null,null,null,null,1549]
[347,"http://www.navdat.org","www.creationismonline.com/YEC/Very_Old_B_7.xls","Very_Old_B_7",null,3314,null,null,null,null,null,3314,null,null,null,null,null,null,3314]
[348,null,null,null,{"$f":"SUM(E1:E348)","v":715},20118,2456,1940,66,404,792,14885,1836,326,1527,142,564,95,20637]
[349,null,null,null,"Negative","Earth","Galaxy","Universe","K/Ar","Ar/Ar","Re/Os","Pb 07/06","Th-232","U-235","U-238","Sm/Nd","Rb/Sr","Lu/Hf","Total"]

{"sheet":"PlotDat2","index":1,"n_rows":81,"n_cols":8,"rows_kept":81,"cut":false,"hidden":true,"merged":[]}
["Source sheet","Plot_08",1.9486000000000001,1.4E-3,0.25129304251593926,0,0.33610000000000001,2.9999999999999997E-4]
["Plot name","PbPlot2",2.2284999999999999,1.9E-3,4.5,6.0183650369106025E-3,0.38109999999999999,3.6361345022489989E-4]
["Plot Type",9,3.54,2.7000000000000001E-3,null,null,0.42609999999999998,4.405298128400012E-4]
["1st free col",9,3.5996999999999999,4.1000000000000003E-3,null,null,0.47109999999999996,5.2586043515878288E-4]
["Sigma Level",1,2.8624000000000001,8.5000000000000006E-3,null,null,0.5161,6.1471666449472396E-4]
["Absolute Errs",true,0.33610000000000001,2.9999999999999997E-4,null,null,0.56110000000000004,7.0220984816130331E-4]
["Symbol Type",12,1.2217,8.9999999999999998E-4,null,null,0.60610000000000008,7.8345133347199969E-4]
["Inverse Plot",true,"IsoLine","IsoLine",null,null,0.65110000000000012,8.5355246774029218E-4]
["Color Plot",true,null,null,null,null,0.69610000000000016,9.0762459827965975E-4]
["3D plot",false,null,null,null,null,0.7411000000000002,9.4077907240358116E-4]
["Linear",false,null,null,null,null,0.78610000000000024,9.4812723742553539E-4]
["Data Range","K3:L9",null,null,null,null,0.83110000000000028,9.2478044065900131E-4]
["Filled Symbols",true,null,null,null,null,0.87610000000000032,8.6585002941745809E-4]
["ConcAge",false,null,null,null,null,0.92110000000000036,7.6644735101438408E-4]
["ConcSwap",false,null,null,null,null,0.9661000000000004,6.2168375276325921E-4]
["1st Symbol-row",1,null,null,null,null,1.0111000000000003,4.2667058197756204E-4]
[null,null,null,null,null,null,1.0561000000000003,1.7651918597077151E-4]
[null,null,null,null,null,null,1.1011000000000002,-1.3365908794363342E-4]
[null,null,null,null,null,null,1.1461000000000001,-5.087528924521738E-4]
[null,null,null,null,null,null,1.1911,-9.5365088024137058E-4]
[null,null,null,null,null,null,1.2217,8.9999999999999998E-4]
[null,null,null,null,null,null,1.2666999999999999,9.6947336796372513E-4]
[null,null,null,null,null,null,1.3116999999999999,1.0304645993032746E-3]
[null,null,null,null,null,null,1.3566999999999998,1.0835810930299242E-3]
[null,null,null,null,null,null,1.4016999999999997,1.1294302481549504E-3]
[null,null,null,null,null,null,1.4466999999999997,1.1686194636896295E-3]
[null,null,null,null,null,null,1.4916999999999996,1.2017561386452374E-3]
[null,null,null,null,null,null,1.5366999999999995,1.2294476720330508E-3]
[null,null,null,null,null,null,1.5816999999999994,1.2523014628643455E-3]
[null,null,null,null,null,null,1.6266999999999994,1.2709249101503979E-3]
[null,null,null,null,null,null,1.6716999999999993,1.285925412902484E-3]
[null,null,null,null,null,null,1.7166999999999992,1.2979103701318802E-3]
[null,null,null,null,null,null,1.7616999999999992,1.3074871808498628E-3]
[null,null,null,null,null,null,1.8066999999999991,1.315263244067708E-3]
[null,null,null,null,null,null,1.851699999999999,1.3218459587966917E-3]
[null,null,null,null,null,null,1.8966999999999989,1.3278427240480904E-3]
[null,null,null,null,null,null,1.9416999999999989,1.3338609388331803E-3]
[null,null,null,null,null,null,1.9486000000000001,1.4E-3]
[null,null,null,null,null,null,1.9936,2.5704346320412946E-3]
[null,null,null,null,null,null,2.0386000000000002,1.5578786438601373E-3]
[null,null,null,null,null,null,2.0836000000000001,-8.2225496392492516E-3]
[null,null,null,null,null,null,2.1286,-3.3355731891992632E-2]
[null,null,null,null,null,null,2.1736,-8.0426549789075763E-2]
[null,null,null,null,null,null,2.2185999999999999,-0.15601988500520442]
[null,null,null,null,null,null,2.2284999999999999,1.9E-3]
[null,null,null,null,null,null,2.2734999999999999,2.0845290441243317E-3]
[null,null,null,null,null,null,2.3184999999999998,2.425529187586482E-3]
[null,null,null,null,null,null,2.3634999999999997,2.9400278822807623E-3]
[null,null,null,null,null,null,2.4084999999999996,3.6450525801014831E-3]
[null,null,null,null,null,null,2.4534999999999996,4.5576307329429555E-3]
[null,null,null,null,null,null,2.4984999999999995,5.6947897926994907E-3]
[null,null,null,null,null,null,2.5434999999999994,7.0735572112654004E-3]
[null,null,null,null,null,null,2.5884999999999994,8.7109604405349941E-3]
[null,null,null,null,null,null,2.6334999999999993,1.0624026932402586E-2]
[null,null,null,null,null,null,2.6784999999999992,1.2829784138762483E-2]
[null,null,null,null,null,null,2.7234999999999991,1.5345259511508998E-2]
[null,null,null,null,null,null,2.7684999999999991,1.8187480502536445E-2]
[null,null,null,null,null,null,2.813499999999999,2.1373474563739132E-2]
[null,null,null,null,null,null,2.8584999999999989,2.4920269147011367E-2]
[null,null,null,null,null,null,2.8624000000000001,8.5000000000000006E-3]
[null,null,null,null,null,null,2.9074,8.6100087028005545E-3]
[null,null,null,null,null,null,2.9523999999999999,8.7143378150009391E-3]
[null,null,null,null,null,null,2.9973999999999998,8.8127593896121011E-3]
[null,null,null,null,null,null,3.0423999999999998,8.905045479644982E-3]
[null,null,null,null,null,null,3.0873999999999997,8.990968138110525E-3]
[null,null,null,null,null,null,3.1323999999999996,9.0702994180196748E-3]
[null,null,null,null,null,null,3.1773999999999996,9.1428113723833748E-3]
[null,null,null,null,null,null,3.2223999999999995,9.2082760542125663E-3]
[null,null,null,null,null,null,3.2673999999999994,9.2664655165181943E-3]
[null,null,null,null,null,null,3.3123999999999993,9.3171518123112019E-3]
[null,null,null,null,null,null,3.3573999999999993,9.3601069946025323E-3]
[null,null,null,null,null,null,3.4023999999999992,9.3951031164031303E-3]
[null,null,null,null,null,null,3.4473999999999991,9.4219122307239358E-3]
[null,null,null,null,null,null,3.4923999999999991,9.4403063905758953E-3]
[null,null,null,null,null,null,3.537399999999999,9.4500576489699502E-3]
[null,null,null,null,null,null,3.54,2.7000000000000001E-3]
[null,null,null,null,null,null,3.5549249999999999,2.7193115363555883E-3]
[null,null,null,null,null,null,3.5698499999999997,2.7377203114238033E-3]
[null,null,null,null,null,null,3.5847749999999996,2.7552570573351133E-3]
[null,null,null,null,null,null,3.5996999999999995,2.7719525062199872E-3]
[null,null,null,null,null,null,"IsoLine","IsoLine"]